lending/lending_fUSD_20250130
["ID","MTS","AMOUNT","RATE_DAILY","PERIOD"]
[350930519,1738212632671,-150.0,0.00020901,2]
[350930520,1738212632681,-1500.40682288,0.00020932,2]
[350930521,1738212632692,-205.44546595,0.00020959,2]
[350930522,1738212632702,-150.0,0.00020959,2]
[350930523,1738212632711,-150.0,0.0002097,2]
[350930524,1738212632721,-150.0,0.00020974,2]
[350930525,1738212632731,-150.0,0.00021,2]
[350930526,1738212632741,-150.0,0.00021017,2]
[350930527,1738212632751,-205.44546595,0.00021018,2]
[350930528,1738212632760,-324.324,0.0002102,2]
[350930529,1738212632770,-803.643,0.0002102,2]
[350930530,1738212632779,-80129.55309271,0.00021027,2]
[350930531,1738212632789,-150.0,0.00021032,2]
[350930532,1738212632799,-150.0,0.00021035,2]
[350930533,1738212632808,-855.0,0.00021036,2]
[350930534,1738212632820,-150.0,0.00021036,2]
[350930535,1738212632830,-150.0,0.00021043,2]
[350930536,1738212632842,-150.0,0.00021055,2]
[350930537,1738212632852,-150.0,0.00021062,2]
[350930538,1738212632862,-150.0,0.0002107,2]
[350930539,1738212632871,-205.44546595,0.00021076,2]
[350930540,1738212632881,-150.0,0.00021116,2]
[350930541,1738212632890,-150.0,0.00021121,2]
[350930542,1738212632901,-205.44546595,0.00021135,2]
[350930543,1738212632911,-150.0,0.0002116,2]
[350930544,1738212632923,-150.0,0.0002119,2]
[350930545,1738212632933,-205.44546595,0.00021194,2]
[350930546,1738212632942,-150.0,0.00021211,2]
[350930547,1738212632952,-150.0,0.00021224,2]
[350930548,1738212632962,-150.0,0.00021225,2]
[350930549,1738212632971,-150.0,0.0002124,2]
[350930550,1738212632981,-150.0,0.00021247,2]
[350930551,1738212632991,-855.0,0.00021248,2]
[350930552,1738212633001,-150.0,0.00021249,2]
[350930553,1738212633011,-205.44546595,0.00021253,2]
[350930554,1738212633021,-1238.39607,0.0002128,2]
[350930555,1738212633031,-150.0,0.00021286,2]
[350930556,1738212633042,-150.0,0.00021287,2]
[350930557,1738212633051,-150.0,0.00021299,2]
[350930558,1738212633061,-150.0,0.00021308,2]
[350930559,1738212633071,-150.0,0.00021308,2]
[350930560,1738212633080,-205.44546595,0.00021312,2]
[350930561,1738212633089,-500.0,0.00021328,2]
[350930562,1738212633099,-150.0,0.0002133,2]
[350930563,1738212633109,-150.0,0.00021348,2]
[350930564,1738212633119,-1056.0,0.00021352,2]
[350930565,1738212633129,-150.0,0.00021353,2]
[350930566,1738212633138,-150.0,0.00021356,2]
[350930567,1738212633148,-150.0,0.00021368,2]
[350930568,1738212633157,-500.0,0.00021369,4]
[350930569,1738212633167,-500.0,0.00021369,4]
[350930570,1738212633176,-500.0,0.00021369,4]
[350930571,1738212633186,-500.0,0.00021369,4]
[350930572,1738212633195,-500.0,0.00021369,4]
[350930573,1738212633204,-500.0,0.00021369,4]
[350930574,1738212633214,-500.0,0.00021369,4]
[350930575,1738212633223,-602.74763827,0.00021369,4]
[350930576,1738212633232,-500.0,0.00021369,4]
[350930577,1738212633241,-468.01561329,0.00021369,4]
[350930578,1738212633250,-2273.35,0.00021369,4]
[350930579,1738212633261,-2273.35,0.00021369,4]
[350930580,1738212633271,-2273.35,0.00021369,4]
[350930581,1738212633281,-2273.35,0.00021369,4]
[350930582,1738212633291,-2273.35,0.00021369,4]
[350930583,1738212633301,-2273.35,0.00021369,4]
[350930584,1738212633311,-2273.35,0.00021369,4]
[350930585,1738212633320,-583.62298926,0.00021369,4]
[350930586,1738212633330,-503.26,0.00021369,4]
[350930587,1738212633339,-503.26,0.00021369,4]
[350930588,1738212633348,-503.26,0.00021369,4]
[350930589,1738212633358,-503.26,0.00021369,4]
[350930590,1738212633368,-503.26,0.00021369,4]
[350930591,1738212633378,-503.26,0.00021369,4]
[350930592,1738212633387,-503.26,0.00021369,4]
[350930593,1738212633397,-500.0,0.00021369,4]
[350930594,1738212633407,-500.0,0.00021369,4]
[350930595,1738212633417,-500.0,0.00021369,4]
[350930596,1738212633426,-500.0,0.00021369,4]
[350930597,1738212633436,-500.0,0.00021369,4]
[350930598,1738212633446,-519.09103915,0.00021369,4]
[350930599,1738212633455,-500.0,0.00021369,4]
[350930600,1738212633465,-525.49955556,0.00021369,4]
[350930601,1738212633476,-240.0986123,0.00021369,4]
[350930602,1738212633488,-524.6818231,0.00021369,4]
[350930603,1738212633498,-500.0,0.00021369,4]
[350930604,1738212633509,-523.84043513,0.00021369,4]
[350930605,1738212633521,-500.0,0.00021369,4]
[350930606,1738212633531,-500.0,0.00021369,4]
[350930607,1738212633541,-500.0,0.00021369,4]
[350930608,1738212633551,-500.0,0.00021369,4]
[350930609,1738212633560,-556.48594095,0.00021369,4]
[350930610,1738212633570,-169.86145951,0.00021369,4]
[350930611,1738212633579,-512.24424749,0.00021369,4]
[350930612,1738212633589,-500.0,0.00021369,4]
[350930613,1738212633598,-500.0,0.00021369,4]
[350930614,1738212633609,-497.46,0.00021369,4]
[350930615,1738212633618,-320.59157165,0.00021369,4]
[350930616,1738212633628,-505.23,0.00021369,4]
[350930617,1738212633637,-500.0,0.00021369,4]
[350930618,1738212633647,-500.0,0.00021369,4]
[350930619,1738212633657,-388.15,0.00021369,4]
[350930620,1738212633666,-500.0,0.00021369,4]
[350930621,1738212633676,-500.0,0.00021369,4]
[350930622,1738212633686,-500.0,0.00021369,4]
[350930623,1738212633695,-519.69057125,0.00021369,4]
[350930624,1738212633705,-514.13535287,0.00021369,4]
[350930625,1738212633715,-549.15,0.00021369,4]
[350930626,1738212633725,-364.31,0.00021369,4]
[350930627,1738212633735,-500.0,0.00021369,4]
[350930628,1738212633745,-500.0,0.00021369,4]
[350930629,1738212633755,-205.44546595,0.00021371,2]
[350930630,1738212633765,-150.0,0.00021379,2]
[350930631,1738212633775,-166.80627001,0.00021396,2]
[350930632,1738212633784,-169.30286412,0.00021398,2]
[350930633,1738212633794,-243.24,0.000214,31]
[350930634,1738212633804,-243.24,0.000214,31]
[350930635,1738212633814,-243.24,0.000214,31]
[350930636,1738212633823,-243.24,0.000214,31]
[350930637,1738212633833,-243.24,0.000214,31]
[350930638,1738212633843,-243.24,0.000214,31]
[350930639,1738212634039,-243.24,0.000214,31]
[350930640,1738212634049,-243.24,0.000214,31]
[350930641,1738212634059,-243.24,0.000214,31]
[350930642,1738212634070,-243.24,0.000214,31]
[350930643,1738212634080,-243.24,0.000214,31]
[350930644,1738212634089,-243.24,0.000214,31]
[350930645,1738212634099,-243.24,0.000214,31]
[350930646,1738212634109,-243.24,0.000214,31]
[350930647,1738212634119,-243.24,0.000214,31]
[350930648,1738212634129,-243.24,0.000214,31]
[350930649,1738212634139,-150.0,0.00021419,2]
[350930650,1738212634149,-150.0,0.00021423,2]
[350930651,1738212634158,-205.44546595,0.00021429,2]
[350930652,1738212634168,-150.0,0.00021448,2]
[350930653,1738212634177,-150.0,0.00021453,2]
[350930654,1738212634188,-855.0,0.0002146,2]
[350930655,1738212634198,-150.0,0.00021464,2]
[350930656,1738212634208,-151.21637899,0.00021474,2]
[350930657,1738212634217,-150.0,0.00021479,4]
[350930658,1738212634226,-150.0,0.00021479,4]
[350930659,1738212634235,-150.0,0.00021479,4]
[350930660,1738212634244,-150.0,0.0002148,2]
[350930661,1738212634255,-150.0,0.0002148,2]
[350930662,1738212634264,-150.0,0.00021481,2]
[350930663,1738212634274,-205.44546595,0.00021488,2]
[350930664,1738212634284,-247.21069504,0.0002149,2]
[350930665,1738212634294,-150.0,0.00021491,2]
[350930666,1738212634303,-500.0,0.00021495,4]
[350930667,1738212634313,-172.82,0.00021495,4]
[350930668,1738212634323,-999.0,0.00021495,2]
[350930669,1738212634333,-500.0,0.00021495,4]
[350930670,1738212634343,-500.0,0.00021495,4]
[350930671,1738212634352,-500.0,0.00021495,4]
[350930672,1738212634362,-500.0,0.00021495,4]
[350930673,1738212634372,-420339.76025163,0.00021496,4]
[350930674,1738212634381,-150.0,0.00021496,2]
[350930675,1738212634390,-150.0,0.00021497,4]
[350930676,1738212634400,-500.0,0.00021498,4]
[350930677,1738212634409,-2273.35,0.00021498,4]
[350930678,1738212634418,-503.26,0.00021498,4]
[350930679,1738212634428,-500.0,0.00021499,4]
[350930680,1738212634437,-500.0,0.00021499,4]
[350930681,1738212634446,-500.0,0.00021499,4]
[350930682,1738212634455,-500.0,0.00021499,4]
[350930683,1738212634465,-474.26995353,0.00021499,4]
[350930684,1738212634475,-2273.35,0.00021499,4]
[350930685,1738212634490,-2273.35,0.00021499,4]
[350930686,1738212634499,-2273.35,0.00021499,4]
[350930687,1738212634510,-2273.35,0.00021499,4]
[350930688,1738212634520,-2273.35,0.00021499,4]
[350930689,1738212634530,-2273.35,0.00021499,4]
[350930690,1738212634540,-2273.35,0.00021499,4]
[350930691,1738212634549,-2273.35,0.00021499,4]
[350930692,1738212634560,-2273.35,0.00021499,4]
[350930693,1738212634570,-2273.35,0.00021499,4]
[350930694,1738212634580,-2273.35,0.00021499,4]
[350930695,1738212634589,-2273.35,0.00021499,4]
[350930696,1738212634599,-2273.35,0.00021499,4]
[350930697,1738212634608,-2273.35,0.00021499,4]
[350930698,1738212634618,-2273.35,0.00021499,4]
[350930699,1738212634627,-2273.35411302,0.00021499,4]
[350930700,1738212634637,-500.0,0.00021499,2]
[350930701,1738212634646,-503.26,0.00021499,4]
[350930702,1738212634656,-503.26,0.00021499,4]
[350930703,1738212634666,-503.26,0.00021499,4]
[350930704,1738212634675,-503.26,0.00021499,4]
[350930705,1738212634684,-503.26,0.00021499,4]
[350930706,1738212634694,-503.26,0.00021499,4]
[350930707,1738212634703,-503.26,0.00021499,4]
[350930708,1738212634713,-503.26,0.00021499,4]
[350930709,1738212634722,-503.26,0.00021499,4]
[350930710,1738212634732,-503.26,0.00021499,4]
[350930711,1738212634741,-503.26,0.00021499,4]
[350930712,1738212634750,-503.26,0.00021499,4]
[350930713,1738212634761,-503.26,0.00021499,4]
[350930714,1738212634770,-503.26,0.00021499,4]
[350930715,1738212634779,-503.26,0.00021499,4]
[350930716,1738212634789,-503.37409629,0.00021499,4]
[350930717,1738212634799,-500.0,0.00021499,4]
[350930718,1738212634809,-500.0,0.00021499,4]
[350930719,1738212634820,-598.49609533,0.00021499,4]
[350930720,1738212634829,-197.84353594,0.000215,2]
[350930721,1738212634839,-2168.46777297,0.000215,2]
[350930722,1738212634854,-182757.66181751,0.000215,2]
[350930723,1738212634863,-120309.12296088,0.000215,2]
[350930724,1738212634878,-421.3557999,0.000215,2]
[350930725,1738212634890,-6834.64085429,0.000215,2]
[350930726,1738212634903,-2614.97457783,0.000215,2]
[350930727,1738212634915,-3653.74999986,0.000215,2]
[350930728,1738212634927,-3592.79863,0.000215,2]
[350930729,1738212634940,-3590.61534836,0.000215,2]
[350930734,1738212637555,-150.0,0.00020625,2]
[350930735,1738212637565,-955.0,0.00020625,2]
[350930736,1738212637664,-152.0,0.00020625,2]
[350930737,1738212637674,-150.0,0.00021372,2]
[350930738,1738212637684,-150.0,0.00021374,2]
[350930739,1738212637697,-48.0,0.00021378,2]
[350930740,1738212637722,-102.0,0.00021378,2]
[350930741,1738212637732,-150.0,0.00021388,2]
[350930742,1738212637741,-150.0,0.0002139,2]
[350930743,1738212637751,-150.0,0.0002139,2]
[350930744,1738212637763,-150.0,0.00021393,2]
[350930745,1738212637773,-150.0,0.00021411,2]
[350930746,1738212637782,-150.0,0.00021427,2]
[350930747,1738212637792,-150.0,0.00021427,2]
[350930748,1738212637801,-150.0,0.00021432,2]
[350930749,1738212637811,-150.0,0.00021435,2]
[350930750,1738212637820,-150.0,0.00021435,2]
[350930751,1738212637830,-150.0,0.00021443,2]
[350930752,1738212637839,-150.0,0.00021446,2]
[350930753,1738212637849,-150.0,0.0002145,2]
[350930754,1738212637859,-150.0,0.0002145,2]
[350930755,1738212637869,-150.0,0.00021455,2]
[350930756,1738212637878,-150.0,0.00021461,2]
[350930757,1738212637888,-150.0,0.00021463,2]
[350930758,1738212637897,-56.94247264,0.00021464,2]
[350930759,1738212637909,-93.05752736,0.00021464,2]
[350930760,1738212637919,-150.0,0.00021469,2]
[350930761,1738212637928,-150.0,0.00021473,2]
[350930762,1738212637938,-150.0,0.00021479,2]
[350930763,1738212637947,-150.0,0.00021479,2]
[350930764,1738212637957,-150.0,0.00021484,2]
[350930765,1738212637967,-150.0,0.00021493,2]
[350930766,1738212637976,-150.0,0.00021498,2]
[350930767,1738212637986,-150.0,0.00021499,2]
[350930768,1738212637995,-12137.64293081,0.000215,2]
[350930770,1738212638008,-54677.88767912,0.000215,2]
[350930771,1738212638022,-10985.55453406,0.000215,2]
[350930778,1738212639620,-568.43632975,0.000215,2]
[350930779,1738212639679,-1959.26000004,0.000215,2]
[350930780,1738212639793,-17726.60430832,0.000215,2]
[350930781,1738212640014,-333.58518724,0.000215,2]
[350930816,1738212642694,-3536.28,0.000215,2]
[350930834,1738212645694,-45538.38507137,0.000215,2]
[350930835,1738212645706,-3043.37928412,0.000215,2]
[350930836,1738212645717,-350.13122922,0.000215,2]
[350930837,1738212645751,-3223.14610623,0.000215,2]
[350930838,1738212645864,-442022.26798167,0.000214,2]
[350930839,1738212680501,1000.0,0.00023,120]
[350930840,1738212696936,2000.0,0.00023,120]
[350930842,1738212730573,1000.0,0.00023,120]
[350930843,1738212738415,1000.0,0.00023,120]
[350930844,1738212799792,200.0,0.00023,120]
[350930846,1738213080846,178.9,0.00010137,2]
[350930851,1738213242697,1030.44075031,0.00023,120]
[350930852,1738213401673,223.495926,0.00023,120]
[350930898,1738213831996,-421.873905,0.00013,2]
[350930899,1738213832008,-128.126095,0.00013,2]
[350930900,1738213832018,-150.0,0.00013349,2]
[350930901,1738213832028,-449.89102852,0.00013699,2]
[350930902,1738213832037,-182.37,0.00013699,2]
[350930903,1738213832047,-150.0,0.000143,2]
[350930904,1738213832056,-158.13844959,0.00014968,2]
[350930905,1738213832066,-600.0,0.00015,2]
[350930906,1738213832075,-150.0,0.00015068,2]
[350930907,1738213832084,-167.82,0.0001616,2]
[350930908,1738213832094,-178.9,0.00016813,2]
[350930909,1738213832103,-250.0,0.00017177,2]
[350930910,1738213832112,-500.0,0.00017748,2]
[350930911,1738213832121,-500.0,0.00017748,2]
[350930912,1738213832132,-612.26,0.00018155,2]
[350930913,1738213832141,-1500.0,0.00018486,2]
[350930914,1738213832151,-10025.25,0.00018518,2]
[350930915,1738213832160,-200.0,0.00018546,2]
[350930916,1738213832169,-5171.24442688,0.00018723,2]
[350930917,1738213832189,-14304.60557312,0.00018723,2]
[350930918,1738213832198,-172.88,0.00018724,2]
[350930919,1738213832208,-150.0,0.0001886,2]
[350930920,1738213832218,-23900.0,0.00018861,2]
[350930921,1738213832229,-150.0,0.000191,2]
[350930922,1738213832240,-152.78,0.00019178,2]
[350930923,1738213832251,-6534.75671896,0.00019655,2]
[350930924,1738213832262,-211.21862261,0.00019663,2]
[350930925,1738213832272,-7608.15,0.00019682,2]
[350930926,1738213832283,-7608.15,0.00019688,2]
[350930927,1738213832293,-1478.59076837,0.00019689,2]
[350930928,1738213832303,-7608.15,0.00019693,2]
[350930929,1738213832313,-7608.15,0.00019698,2]
[350930930,1738213832323,-7608.15,0.00019703,2]
[350930931,1738213832333,-7608.15,0.00019708,2]
[350930932,1738213832343,-1478.59076837,0.00019712,2]
[350930933,1738213832352,-7608.15,0.00019713,2]
[350930934,1738213832362,-7608.15,0.00019719,2]
[350930935,1738213832372,-7608.15,0.00019724,2]
[350930936,1738213832381,-150.0,0.00019725,2]
[350930937,1738213832391,-7608.15,0.00019729,2]
[350930939,1738213832401,-7608.15,0.00019734,2]
[350930940,1738213832410,-150.0,0.00019738,2]
[350930941,1738213832420,-211.21862261,0.00019738,2]
[350930942,1738213832429,-7608.15,0.00019739,2]
[350930943,1738213832439,-1478.59076837,0.00019742,2]
[350930944,1738213832454,-150.0,0.00019744,2]
[350930945,1738213832463,-7608.15,0.00019745,2]
[350930946,1738213832472,-7608.15,0.0001975,2]
[350930947,1738213832482,-7490.44076881,0.00019755,2]
[350930948,1738213832495,-117.70923119,0.00019755,2]
[350930949,1738213832504,-211.21862261,0.00019759,2]
[350930950,1738213832514,-7608.15,0.0001976,2]
[350930951,1738213832523,-7608.15,0.00019765,2]
[350930952,1738213832534,-211.21862261,0.0001977,2]
[350930953,1738213832543,-7608.15,0.0001977,2]
[350930954,1738213832553,-7608.15,0.00019776,2]
[350930956,1738213832563,-150.0,0.00019776,2]
[350930959,1738213832574,-7608.15,0.00019781,2]
[350930962,1738213832584,-1478.59076837,0.00019789,2]
[350930965,1738213832594,-150.0,0.00019814,2]
[350930968,1738213832604,-150.0,0.00019821,2]
[350930970,1738213832613,-436.98,0.00019846,2]
[350930972,1738213832623,-6534.7567189,0.00019849,2]
[350930974,1738213832633,-150.0,0.00019854,2]
[350930976,1738213832642,-150.0,0.00019866,2]
[350930978,1738213832652,-474.79,0.00019907,2]
[350930980,1738213832662,-215.38720337,0.0001992,2]
[350930982,1738213832673,-150.0,0.00019925,2]
[350930984,1738213832682,-1222.4,0.00019936,2]
[350930986,1738213832692,-1000.0,0.00019953,2]
[350930988,1738213832702,-150.0,0.00019956,2]
[350930991,1738213832712,-330.59,0.0002,2]
[350930993,1738213832722,-100485.15586223,0.0002,2]
[350930995,1738213832731,-150.0,0.0002002,2]
[350930997,1738213832740,-6534.7567189,0.00020043,2]
[350930999,1738213832749,-500.0,0.00020075,2]
[350931001,1738213832759,-150.0,0.00020078,2]
[350931003,1738213832768,-289.79022833,0.00020082,2]
[350931005,1738213832777,-167.57445936,0.00020082,2]
[350931007,1738213832787,-150.0,0.0002009,2]
[350931008,1738213832797,-150.0,0.00020093,2]
[350931009,1738213833010,-1562.15,0.00020104,2]
[350931010,1738213833021,-928.057,0.00020141,2]
[350931011,1738213833032,-500.0,0.00020141,2]
[350931012,1738213833051,-150.0,0.00020154,2]
[350931013,1738213833068,-150.0,0.00020155,2]
[350931014,1738213833079,-29680.17,0.00020155,2]
[350931015,1738213833090,-250.0,0.00020156,2]
[350931016,1738213833102,-150.0,0.00020164,2]
[350931017,1738213833112,-289.79022833,0.00020164,2]
[350931018,1738213833123,-167.57445936,0.00020164,2]
[350931019,1738213833134,-640.93,0.00020176,2]
[350931020,1738213833145,-200.0,0.00020213,2]
[350931021,1738213833155,-150.75,0.00020216,2]
[350931022,1738213833167,-6534.7567189,0.00020237,2]
[350931023,1738213833177,-150.0,0.00020241,2]
[350931024,1738213833188,-210.0,0.0002027,2]
[350931025,1738213833198,-289.79022833,0.00020274,2]
[350931026,1738213833209,-167.57445936,0.00020274,2]
[350931027,1738213833220,-150.0,0.00020281,2]
[350931028,1738213833230,-150.0,0.00020292,2]
[350931029,1738213833240,-168.37,0.00020309,2]
[350931030,1738213833250,-150.0,0.00020312,2]
[350931031,1738213833261,-153.0,0.00020333,2]
[350931032,1738213833272,-150.0,0.00020346,2]
[350931033,1738213833284,-150.0,0.00020354,2]
[350931034,1738213833294,-289.79022833,0.00020356,2]
[350931035,1738213833304,-167.57445936,0.00020356,2]
[350931036,1738213833314,-150.0,0.00020382,2]
[350931037,1738213833324,-612.26,0.00020419,2]
[350931038,1738213833334,-150.0,0.00020424,2]
[350931039,1738213833344,-6534.7567189,0.00020431,2]
[350931040,1738213833354,-150.0,0.00020464,2]
[350931041,1738213833364,-289.79022833,0.00020466,2]
[350931042,1738213833374,-167.57445936,0.00020466,2]
[350931043,1738213833384,-150.0,0.00020477,2]
[350931044,1738213833396,-150.0,0.00020481,2]
[350931045,1738213833412,-150.0,0.00020484,2]
[350931046,1738213833422,-150.0,0.00020485,2]
[350931047,1738213833433,-150.0,0.00020487,2]
[350931048,1738213833442,-150.0,0.00020543,2]
[350931049,1738213833452,-1657.29891659,0.00020546,2]
[350931050,1738213833466,-4142.70108341,0.00020546,2]
[350931051,1738213833476,-4672.04581851,0.00020547,2]
[350931052,1738213833488,-289.79022833,0.00020548,2]
[350931053,1738213833498,-167.57445936,0.00020548,2]
[350931054,1738213833509,-182.37,0.00020548,2]
[350931055,1738213833519,-150.0,0.00020569,2]
[350931056,1738213833528,-150.0,0.00020575,2]
[350931057,1738213833539,-210.0,0.000206,2]
[350931058,1738213833550,-1859.0,0.00020611,2]
[350931059,1738213833559,-6534.7567189,0.00020624,2]
[350931060,1738213833570,-311.0,0.00020626,2]
[350931061,1738213833580,-150.216,0.00020626,2]
[350931062,1738213833589,-1268.0,0.00020626,2]
[350931063,1738213833599,-2020.0,0.00020626,2]
[350931064,1738213833609,-568.778,0.00020626,2]
[350931065,1738213833620,-637.0,0.00020626,2]
[350931066,1738213833630,-151.075,0.00020626,2]
[350931067,1738213833641,-1866.0,0.00020626,2]
[350931068,1738213833654,-1262.0,0.00020626,2]
[350931069,1738213833664,-2950.0,0.00020626,2]
[350931070,1738213833674,-782.0,0.00020626,2]
[350931071,1738213833685,-908.0,0.00020626,2]
[350931072,1738213833695,-538.0,0.00020626,2]
[350931073,1738213833711,-180.741,0.00020626,2]
[350931074,1738213833721,-150.777,0.00020626,2]
[350931075,1738213833731,-1005.0,0.00020626,2]
[350931076,1738213833741,-3903.0,0.00020626,2]
[350931077,1738213833750,-316.0,0.00020633,2]
[350931078,1738213833760,-150.0,0.00020647,2]
[350931079,1738213833770,-150.0,0.00020652,2]
[350931080,1738213833780,-289.79022833,0.00020658,2]
[350931081,1738213833791,-167.57445936,0.00020658,2]
[350931082,1738213833800,-151.87658493,0.00020658,2]
[350931083,1738213833811,-1222.4,0.00020674,2]
[350931084,1738213833821,-500.0,0.0002068,2]
[350931085,1738213833831,-680.61,0.00020685,2]
[350931086,1738213833841,-150.0,0.000207,2]
[350931087,1738213833850,-150.0,0.00020734,2]
[350931088,1738213833860,-150.0,0.00020754,2]
[350931089,1738213833873,-200.0,0.00020756,2]
[350931090,1738213833883,-150.0,0.00020758,2]
[350931091,1738213833893,-150.0,0.00020758,2]
[350931092,1738213833904,-289.79022833,0.00020767,2]
[350931093,1738213833915,-167.57445936,0.00020767,2]
[350931094,1738213833925,-150.0,0.00020768,2]
[350931095,1738213833936,-150.0,0.00020814,2]
[350931096,1738213833947,-6534.7567189,0.00020818,2]
[350931097,1738213833958,-1859.0,0.00020823,2]
[350931098,1738213833969,-150.0,0.00020837,2]
[350931099,1738213833979,-150.0,0.00020844,2]
[350931100,1738213833989,-289.79022833,0.00020849,2]
[350931101,1738213834000,-167.57445936,0.00020849,2]
[350931102,1738213834009,-750.0,0.0002087,2]
[350931103,1738213834020,-150.0,0.00020876,2]
[350931104,1738213834030,-150.0,0.00020881,2]
[350931105,1738213834041,-150.0,0.00020885,2]
[350931106,1738213834051,-150.0,0.00020889,2]
[350931107,1738213834061,-205.44546595,0.000209,2]
[350931108,1738213834071,-150.0,0.00020905,2]
[350931109,1738213834081,-150.0,0.00020923,2]
[350931110,1738213834091,-150.0,0.00020927,2]
[350931111,1738213834101,-210.0,0.0002093,2]
[350931112,1738213834111,-150.0,0.00020938,2]
[350931113,1738213834120,-289.79022833,0.00020959,2]
[350931114,1738213834130,-167.57445936,0.00020959,2]
[350931115,1738213834140,-150.0,0.0002096,2]
[350931116,1738213834149,-1400.37970142,0.0002097,2]
[350931117,1738213834160,-1878.19,0.00021,10]
[350931118,1738213834171,-150.0,0.00021,2]
[350931119,1738213834183,-2093.0,0.00021,2]
[350931120,1738213834194,-6534.7567189,0.00021012,2]
[350931121,1738213834204,-150.0,0.00021027,2]
[350931122,1738213834213,-1859.0,0.00021036,2]
[350931123,1738213834223,-289.79022833,0.00021041,2]
[350931124,1738213834233,-167.57445936,0.00021041,2]
[350931125,1738213834243,-150.0,0.00021045,2]
[350931126,1738213834253,-150.0,0.00021064,2]
[350931127,1738213834262,-205.44546595,0.00021067,2]
[350931128,1738213834272,-1100.76551478,0.0002107,2]
[350931129,1738213834283,-500.0,0.0002107,2]
[350931130,1738213834293,-500.0,0.0002107,2]
[350931131,1738213834302,-500.0,0.0002107,2]
[350931132,1738213834312,-500.0,0.0002107,2]
[350931133,1738213834321,-500.0,0.0002107,2]
[350931134,1738213834331,-500.0,0.0002107,2]
[350931135,1738213834340,-500.0,0.0002107,2]
[350931136,1738213834350,-500.0,0.0002107,2]
[350931137,1738213834360,-500.0,0.0002107,2]
[350931138,1738213834369,-500.0,0.0002107,2]
[350931139,1738213834379,-500.0,0.0002107,2]
[350931140,1738213834389,-150.0,0.00021072,2]
[350931141,1738213834399,-150.0,0.00021072,2]
[350931142,1738213834408,-150.0,0.00021077,2]
[350931143,1738213834417,-150.0,0.00021108,2]
[350931144,1738213834427,-150.0,0.00021116,2]
[350931145,1738213834436,-150.0,0.00021118,2]
[350931146,1738213834446,-150.0,0.00021134,2]
[350931147,1738213834456,-150.0,0.00021139,2]
[350931148,1738213834466,-289.79022833,0.00021151,2]
[350931149,1738213834476,-167.57445936,0.00021151,2]
[350931150,1738213834485,-150.0,0.00021166,2]
[350931151,1738213834495,-150.0,0.00021169,2]
[350931152,1738213834504,-6534.7567189,0.00021206,2]
[350931153,1738213834514,-150.0,0.0002122,2]
[350931154,1738213834525,-150.0,0.00021222,2]
[350931155,1738213834536,-150.0,0.00021223,2]
[350931156,1738213834547,-209.0,0.00021228,2]
[350931157,1738213834557,-205.44546595,0.00021233,2]
[350931158,1738213834567,-1859.0,0.00021248,2]
[350931159,1738213834578,-655.8389873,0.00021248,2]
[350931160,1738213834588,-150.0,0.00021253,2]
[350931161,1738213834598,-210.0,0.0002126,2]